[Event "32nd GER-ch Seniors-65 2020"]
[Site "Magdeburg"]
[Date "2020.08.20"]
[Round "7.6"]
[White "Postler, Reinhard"]
[Black "Blosze, Winfried"]
[Result "1-0"]
[ECO "C96"]
[WhiteElo "2238"]
[BlackElo "1820"]
[Annotator "ChessBase"]
[PlyCount "107"]
[EventDate "2020.08.14"]
[EventType "swiss"]
[EventCountry "GER"]
[SourceTitle "playchess.com"]
[Source "ChessBase"]
[SourceQuality "1"]
[TimeControl "40/5400+30:1800+30"]

1. e4 {[%emt 0:00:00]} e5 {[%emt 0:00:00]} 2. Nf3 {[%emt 0:00:00]} Nc6 {[%emt 0:00:00]} 3. Bb5 {[%emt 0:00:00]} a6 {[%emt 0:00:00]} 4. Ba4 {[%emt 0:00:00]} Nf6 {[%emt 0:00:22]} 5. O-O {[%emt 0:00:00]} b5 {[%emt 0:00:24]} 6. Bb3 {[%emt 0:00:01]} Be7 {[%emt 0:00:29]} 7. Re1 {[%emt 0:00:20]} O-O {[%emt 0:00:38]} 8. h3 {[%emt 0:00:33]} d6 {[%emt 0:00:09]} 9. c3 {[%emt 0:00:08]} Na5 {[%emt 0:02:13]} 10. Bc2 {[%emt 0:00:33]} Nc4 {[%emt 0:03:20]} 11. d4 {[%emt 0:02:17]} exd4 {[%emt 0:03:45]} 12. cxd4 {[%emt 0:00:05]} Bb7 {[%emt 0:03:24]} 13. b3 {[%emt 0:09:35]} Nb6 {[%emt 0:01:14]} 14. Nbd2 {[%emt 0:03:19]} Re8 {[%emt 0:05:52]} 15. Bb2 {[%emt 0:03:45]} g6 {[%emt 0:05:21]} 16. Rc1 {[%emt 0:01:30]} Bf8 {[%emt 0:04:48]} 17. Bb1 {[%emt 0:04:06]} Rc8 {[%emt 0:04:59]} 18. e5 {[%emt 0:03:25]} Nh5 {[%emt 0:01:48]} 19. Be4 {[%emt 0:04:49]} d5 {[%emt 0:03:34]} 20. Bb1 {[%emt 0:00:03]} Ng7 {[%emt 0:02:40]} 21. Nf1 {[%emt 0:00:50]} Ne6 {[%emt 0:02:29]} 22. Bc3 {[%emt 0:01:05]} b4 {[%emt 0:04:43]} 23. Bd2 {[%emt 0:02:19]} c5 {[%emt 0:01:38]} 24. Be3 {[%emt 0:00:21]} c4 {[%emt 0:00:25]} 25. N3h2 {[%emt 0:00:48]} a5 {[%emt 0:05:44]} 26. Ng4 {[%emt 0:01:53]} Nd7 {[%emt 0:00:45]} 27. f4 {[%emt 0:00:13]} f5 {[%emt 0:05:29]} 28. exf6 {[%emt 0:00:52]} Nxf6 {[%emt 0:00:06]} 29. f5 {[%emt 0:02:00]} gxf5 {[%emt 0:01:09]} 30. Bxf5 {[%emt 0:00:17]} Ne4 {[%emt 0:03:21]} 31. Ne5 {[%emt 0:03:38]} Qh4 {[%emt 0:04:56]} 32. g3 {[%emt 0:04:53]} Qe7 {[%emt 0:08:13]} 33. bxc4 {[%emt 0:00:37]} Qg7 {[%emt 0:02:13]} 34. c5 {[%emt 0:08:09]} Nxg3 {[%emt 0:02:02]} 35. Nxg3 {[%emt 0:00:37]} Qxg3+ 36. Kh1 Ng7 {[%emt 0:03:27]} 37. Bxc8 {[%emt 0:09:58]} Bxc8 {[%emt 0:00:30]} 38. Qf3 {[%emt 0:00:48]} Qxf3+ {[%emt 0:00:56]} 39. Nxf3 {[%emt 0:00:02]} Bxh3 {[%emt 0:01:28]} 40. Bf4 {[%emt 0:00:19]} Rc8 {[%emt 0:02:44]} 41. Be5 {[%emt 0:34:03]} Rc6 {[%emt 0:33:58]} 42. Kh2 {[%emt 0:00:31]} Bf5 {[%emt 0:00:12]} 43. Kg3 {[%emt 0:00:53]} Be4 {[%emt 0:01:31]} 44. Kf2 {[%emt 0:00:35]} Nf5 45. Rg1+ Kf7 {[%emt 0:06:50]} 46. Ng5+ {[%emt 0:00:46]} Ke8 {[%emt 0:01:31]} 47. Nxe4 {[%emt 0:03:10]} dxe4 {[%emt 0:00:03]} 48. Rce1 {[%emt 0:02:47]} e3+ {[%emt 0:01:28]} 49. Kf3 {[%emt 0:00:15]} Rh6 {[%emt 0:00:52]} 50. Ke4 {[%emt 0:02:22]} Ne7 {[%emt 0:00:00]} 51. Rxe3 {[%emt 0:00:00]} Rh4+ {[%emt 0:00:00]} 52. Kd3 {[%emt 0:00:00]} Kd7 {[%emt 0:00:00]} 53. Kc4 {[%emt 0:00:00]} Kc6 {[%emt 0:00:00]} 54. Bf6 {[%emt 0:00:00]} 1-0

[Event "32nd GER-ch Seniors-65 2020"]
[Site "Magdeburg"]
[Date "2020.08.20"]
[Round "7.7"]
[White "Lehmann, Joachim"]
[Black "Strobel, Walter"]
[Result "0-1"]
[ECO "D00"]
[WhiteElo "1797"]
[BlackElo "2150"]
[Annotator "ChessBase"]
[PlyCount "82"]
[EventDate "2020.08.14"]
[EventType "swiss"]
[EventCountry "GER"]
[SourceTitle "playchess.com"]
[Source "ChessBase"]
[SourceQuality "1"]
[TimeControl "40/5400+30:1800+30"]

1. d4 {[%emt 0:00:00]} d5 {[%emt 0:00:00]} 2. Nc3 {[%emt 0:00:00]} c6 {[%emt 0:00:52]} 3. Bf4 {[%emt 0:00:00]} Nf6 {[%emt 0:01:24]} 4. e3 {[%emt 0:00:00]} Bf5 {[%emt 0:01:05]} 5. f3 {[%emt 0:00:06]} e6 {[%emt 0:02:43]} 6. g4 {[%emt 0:00:08]} Bg6 {[%emt 0:00:06]} 7. h4 {[%emt 0:00:06]} h6 {[%emt 0:04:15]} 8. Bd3 {[%emt 0:00:09]} Bxd3 {[%emt 0:03:50]} 9. Qxd3 {[%emt 0:00:02]} Nbd7 {[%emt 0:00:03]} 10. Nge2 {[%emt 0:00:58]} Nb6 {[%emt 0:06:55]} 11. O-O-O {[%emt 0:03:52]} Nc4 {[%emt 0:06:54]} 12. Rdg1 {[%emt 0:02:11]} Qa5 {[%emt 0:02:45]} 13. Kb1 {[%emt 0:05:46]} Be7 {[%emt 0:34:27]} 14. Nc1 {[%emt 0:04:42]} Nd7 {[%emt 0:03:53]} 15. Nb3 {[%emt 0:01:49]} Qa6 {[%emt 0:00:15]} 16. g5 {[%emt 0:01:34]} h5 {[%emt 0:01:40]} 17. e4 {[%emt 0:01:03]} O-O-O {[%emt 0:02:51]} 18. exd5 {[%emt 0:00:53]} cxd5 {[%emt 0:00:34]} 19. Re1 {[%emt 0:02:10]} g6 {[%emt 0:01:35]} 20. Nd2 {[%emt 0:05:05]} Ndb6 {[%emt 0:06:30]} 21. Nxc4 {[%emt 0:06:13]} Nxc4 {[%emt 0:00:59]} 22. Ka1 {[%emt 0:01:39]} Bb4 {[%emt 0:00:58]} 23. Re2 {[%emt 0:04:12]} Qa5 {[%emt 0:04:28]} 24. Nd1 {[%emt 0:01:32]} Bd6 {[%emt 0:01:01]} 25. Bxd6 {[%emt 0:01:27]} Rxd6 {[%emt 0:00:35]} 26. Qc3 {[%emt 0:06:57]} Qxc3 {[%emt 0:04:27]} 27. Nxc3 {[%emt 0:00:14]} Rb6 {[%emt 0:00:02]} 28. b3 {[%emt 0:10:01]} Nd6 {[%emt 0:00:06]} 29. Na4 {[%emt 0:03:09]} Rc6 {[%emt 0:00:07]} 30. Nc5 {[%emt 0:00:09]} Nf5 {[%emt 0:00:27]} 31. c3 {[%emt 0:00:51]} Ng3 {[%emt 0:00:34]} 32. Rhe1 {[%emt 0:00:33]} Nxe2 {[%emt 0:00:06]} 33. Rxe2 {[%emt 0:00:08]} b6 {[%emt 0:00:21]} 34. Na4 {[%emt 0:00:05]} Kd7 {[%emt 0:00:42]} 35. Kb2 {[%emt 0:00:35]} Rf8 {[%emt 0:01:33]} 36. Rg2 {[%emt 0:04:29]} Kd6 {[%emt 0:01:04]} 37. Ka3 {[%emt 0:02:31]} e5 {[%emt 0:01:40]} 38. Kb2 {[%emt 0:02:24]} Re8 {[%emt 0:01:25]} 39. Rd2 {[%emt 0:04:45]} e4 {[%emt 0:00:46]} 40. fxe4 {[%emt 0:03:54]} Rxe4 {[%emt 0:00:17]} 41. Rh2 {[%emt 0:30:26]} Rc7 0-1

[Event "32nd GER-ch Seniors-65 2020"]
[Site "Magdeburg"]
[Date "2020.08.20"]
[Round "7.9"]
[White "Pichler, Manfred"]
[Black "Rosen, Willy"]
[Result "0-1"]
[ECO "B20"]
[WhiteElo "1984"]
[BlackElo "2165"]
[Annotator "ChessBase"]
[PlyCount "70"]
[EventDate "2020.08.14"]
[EventType "swiss"]
[EventCountry "GER"]
[SourceTitle "playchess.com"]
[Source "ChessBase"]
[SourceQuality "1"]
[TimeControl "40/5400+30:1800+30"]

1. e4 {[%emt 0:00:00]} c5 {[%emt 0:00:00]} 2. b3 {[%emt 0:00:00]} e5 {[%emt 0:02:00]} 3. Bb2 {[%emt 0:00:30]} Nc6 {[%emt 0:00:52]} 4. Bc4 {[%emt 0:02:58]} d6 {[%emt 0:06:06]} 5. Nc3 {[%emt 0:08:59]} Nf6 {[%emt 0:03:11]} 6. d3 {[%emt 0:00:18]} a6 {[%emt 0:04:00]} 7. a4 {[%emt 0:02:41]} g6 {[%emt 0:03:48]} 8. Nge2 {[%emt 0:01:05]} Bg7 {[%emt 0:08:00]} 9. O-O {[%emt 0:00:11]} O-O {[%emt 0:00:19]} 10. f4 {[%emt 0:10:40]} Ng4 {[%emt 0:03:20]} 11. Nd5 {[%emt 0:18:19]} Ne7 {[%emt 0:23:47]} 12. Nec3 {[%emt 0:06:59]} exf4 {[%emt 0:01:23]} 13. Nxe7+ {[%emt 0:17:06]} Qxe7 {[%emt 0:00:03]} 14. Qc1 {[%emt 0:09:24]} Bd4+ {[%emt 0:01:23]} 15. Kh1 {[%emt 0:00:24]} Nxh2 {[%emt 0:11:17]} 16. Qxf4 {[%emt 0:01:50]} Nxf1 {[%emt 0:01:28]} 17. Nd5 {[%emt 0:05:48]} Qe5 {[%emt 0:00:38]} 18. Bxd4 {[%emt 0:01:45]} cxd4 {[%emt 0:03:46]} 19. Qxf1 {[%emt 0:02:54]} Be6 {[%emt 0:03:30]} 20. Nb6 {[%emt 0:02:09]} Rad8 {[%emt 0:01:09]} 21. Qf2 {[%emt 0:01:30]} Bxc4 {[%emt 0:06:27]} 22. Nxc4 {[%emt 0:00:09]} Qh5+ {[%emt 0:00:09]} 23. Kg1 {[%emt 0:00:15]} d5 {[%emt 0:00:08]} 24. Nd2 {[%emt 0:01:58]} dxe4 {[%emt 0:04:33]} 25. Nxe4 {[%emt 0:00:11]} f5 {[%emt 0:00:12]} 26. Nc5 {[%emt 0:01:31]} Rfe8 {[%emt 0:00:23]} 27. Nxb7 {[%emt 0:01:39]} Re2 {[%emt 0:01:28]} 28. Qg3 {[%emt 0:00:29]} Rde8 {[%emt 0:01:10]} 29. Nd6 {[%emt 0:01:05]} R8e3 {[%emt 0:03:03]} 30. Qf4 {[%emt 0:00:46]} Qg4 {[%emt 0:00:19]} 31. Qxg4 {[%emt 0:00:32]} fxg4 {[%emt 0:00:02]} 32. Nc4 {[%emt 0:00:20]} Rg3 {[%emt 0:00:23]} 33. b4 {[%emt 0:01:19]} Rgxg2+ {[%emt 0:00:26]} 34. Kf1 {[%emt 0:00:22]} Ref2+ {[%emt 0:00:12]} 35. Ke1 {[%emt 0:00:09]} g3 0-1

[Event "32nd GER-ch Seniors-65 2020"]
[Site "Magdeburg"]
[Date "2020.08.20"]
[Round "7.10"]
[White "Knaak, Joachim"]
[Black "Walther, Reinhard"]
[Result "1/2-1/2"]
[ECO "D18"]
[WhiteElo "2144"]
[BlackElo "2027"]
[Annotator "ChessBase"]
[PlyCount "95"]
[EventDate "2020.08.14"]
[EventType "swiss"]
[EventCountry "GER"]
[SourceTitle "playchess.com"]
[Source "ChessBase"]
[SourceQuality "1"]
[TimeControl "40/5400+30:1800+30"]

1. d4 {[%emt 0:00:00]} d5 {[%emt 0:00:00]} 2. c4 {[%emt 0:00:00]} c6 {[%emt 0:00:00]} 3. Nc3 {[%emt 0:00:00]} Nf6 {[%emt 0:00:00]} 4. Nf3 {[%emt 0:00:00]} dxc4 {[%emt 0:00:00]} 5. a4 {[%emt 0:00:06]} Bf5 {[%emt 0:00:11]} 6. e3 {[%emt 0:00:08]} e6 {[%emt 0:00:17]} 7. Bxc4 {[%emt 0:00:06]} Bb4 {[%emt 0:00:22]} 8. O-O {[%emt 0:00:44]} Nbd7 {[%emt 0:01:48]} 9. Qe2 {[%emt 0:00:50]} O-O {[%emt 0:07:14]} 10. e4 {[%emt 0:07:45]} Bg6 {[%emt 0:02:54]} 11. Bg5 {[%emt 0:10:29]} h6 {[%emt 0:01:03]} 12. Bh4 {[%emt 0:00:52]} Qa5 {[%emt 0:01:50]} 13. e5 {[%emt 0:06:17]} Nd5 {[%emt 0:04:45]} 14. Nxd5 {[%emt 0:04:17]} exd5 {[%emt 0:03:05]} 15. Bd3 {[%emt 0:01:03]} Bxd3 {[%emt 0:02:58]} 16. Qxd3 {[%emt 0:00:02]} Rae8 {[%emt 0:00:26]} 17. g4 {[%emt 0:09:45]} Re6 {[%emt 0:12:03]} 18. g5 {[%emt 0:05:26]} h5 {[%emt 0:05:48]} 19. Bg3 {[%emt 0:03:46]} c5 {[%emt 0:05:52]} 20. Kh1 {[%emt 0:11:23]} Qa6 {[%emt 0:02:48]} 21. Qxa6 {[%emt 0:08:26]} Rxa6 {[%emt 0:00:20]} 22. Rfd1 {[%emt 0:08:29]} c4 {[%emt 0:06:22]} 23. Nh4 {[%emt 0:00:46]} g6 {[%emt 0:00:52]} 24. f4 {[%emt 0:00:18]} Rc8 {[%emt 0:01:47]} 25. f5 {[%emt 0:00:25]} Nf8 {[%emt 0:05:25]} 26. Be1 {[%emt 0:03:05]} Bxe1 {[%emt 0:06:23]} 27. Rxe1 {[%emt 0:00:02]} c3 {[%emt 0:00:29]} 28. bxc3 {[%emt 0:07:10]} Rxc3 {[%emt 0:00:12]} 29. Reb1 {[%emt 0:01:38]} Rh3 {[%emt 0:04:04]} 30. Ng2 {[%emt 0:00:22]} gxf5 {[%emt 0:00:19]} 31. Nf4 {[%emt 0:03:53]} Rc3 {[%emt 0:00:46]} 32. Nxd5 {[%emt 0:01:35]} Rc4 {[%emt 0:00:19]} 33. Rxb7 {[%emt 0:01:05]} Rxd4 {[%emt 0:03:12]} 34. Ne7+ {[%emt 0:00:20]} Kh7 {[%emt 0:00:25]} 35. Nxf5 {[%emt 0:00:20]} Rd7 {[%emt 0:00:35]} 36. Rb5 {[%emt 0:03:46]} Ne6 {[%emt 0:05:35]} 37. h4 {[%emt 0:00:47]} Nd4 {[%emt 0:02:20]} 38. Rd1 {[%emt 0:02:19]} Rxa4 {[%emt 0:00:16]} 39. Nxd4 {[%emt 0:00:24]} Raxd4 {[%emt 0:00:17]} 40. Rxd4 {[%emt 0:00:31]} Rxd4 {[%emt 0:00:03]} 41. Rb7 {[%emt 0:03:48]} Rxh4+ 42. Kg2 {[%emt 0:00:21]} Kg6 {[%emt 0:02:23]} 43. Rxa7 {[%emt 0:01:09]} Re4 {[%emt 0:01:40]} 44. Re7 {[%emt 0:09:27]} Rg4+ {[%emt 0:00:32]} 45. Kh3 {[%emt 0:03:53]} Rxg5 {[%emt 0:00:35]} 46. Re8 {[%emt 0:03:24]} Rf5 {[%emt 0:07:18]} 47. e6 f6 48. Rg8+ 1/2-1/2

[Event "32nd GER-ch Seniors-65 2020"]
[Site "Magdeburg"]
[Date "2020.08.21"]
[Round "8.2"]
[White "Postler, Reinhard"]
[Black "Dresen, Ulrich"]
[Result "0-1"]
[ECO "C88"]
[WhiteElo "2238"]
[BlackElo "2230"]
[Annotator "ChessBase"]
[PlyCount "58"]
[EventDate "2020.08.14"]
[EventType "swiss"]
[EventCountry "GER"]
[SourceTitle "playchess.com"]
[Source "ChessBase"]
[SourceQuality "1"]
[TimeControl "40/5400+30:1800+30"]

1. e4 {[%emt 0:00:00]} e5 {[%emt 0:02:01]} 2. Nf3 {[%emt 0:00:00]} Nc6 {[%emt 0:01:07]} 3. Bb5 {[%emt 0:00:00]} a6 {[%emt 0:00:05]} 4. Ba4 {[%emt 0:00:00]} Nf6 {[%emt 0:00:08]} 5. O-O {[%emt 0:00:00]} Be7 {[%emt 0:00:09]} 6. Re1 {[%emt 0:00:13]} b5 {[%emt 0:00:12]} 7. Bb3 {[%emt 0:00:01]} d6 {[%emt 0:00:10]} 8. a3 {[%emt 0:02:30]} O-O {[%emt 0:10:28]} 9. d3 {[%emt 0:00:19]} Be6 {[%emt 0:13:12]} 10. Nc3 {[%emt 0:10:37]} Bxb3 {[%emt 0:13:29]} 11. cxb3 {[%emt 0:00:06]} Nd4 {[%emt 0:02:15]} 12. Nxd4 {[%emt 0:03:04]} exd4 {[%emt 0:00:09]} 13. Ne2 {[%emt 0:00:03]} c5 {[%emt 0:00:56]} 14. Bg5 {[%emt 0:00:48]} Nd7 {[%emt 0:07:31]} 15. Bxe7 {[%emt 0:01:43]} Qxe7 {[%emt 0:00:04]} 16. Nf4 {[%emt 0:00:33]} Nf6 {[%emt 0:04:30]} 17. h4 {[%emt 0:04:49]} Qe5 {[%emt 0:03:58]} 18. g3 {[%emt 0:02:38]} h5 {[%emt 0:06:11]} 19. Rc1 {[%emt 0:09:11]} Rac8 {[%emt 0:00:55]} 20. Qf3 {[%emt 0:02:41]} Rfe8 {[%emt 0:00:48]} 21. Kf1 {[%emt 0:03:10]} g6 {[%emt 0:04:34]} 22. Re2 {[%emt 0:06:27]} Re7 {[%emt 0:03:11]} 23. Rcc2 {[%emt 0:05:55]} Kg7 {[%emt 0:01:16]} 24. Kg2 {[%emt 0:03:17]} Rec7 {[%emt 0:01:28]} 25. Nd5 {[%emt 0:03:21]} Nxd5 {[%emt 0:00:37]} 26. exd5 {[%emt 0:00:09]} Qf5 {[%emt 0:01:04]} 27. Re4 {[%emt 0:02:18]} Qxd5 {[%emt 0:01:12]} 28. Ree2 Qf5 29. Qe4 Qxe4+ 0-1

[Event "32nd GER-ch Seniors-65 2020"]
[Site "Magdeburg"]
[Date "2020.08.21"]
[Round "8.3"]
[White "Strobel, Walter"]
[Black "Waltenberger, Udo"]
[Result "1-0"]
[ECO "B36"]
[WhiteElo "2150"]
[BlackElo "2005"]
[Annotator "ChessBase"]
[PlyCount "54"]
[EventDate "2020.08.14"]
[EventType "swiss"]
[EventCountry "GER"]
[SourceTitle "playchess.com"]
[Source "ChessBase"]
[SourceQuality "1"]
[TimeControl "40/5400+30:1800+30"]

1. e4 {[%emt 0:00:00]} c5 {[%emt 0:03:20]} 2. Nf3 {[%emt 0:00:00]} Nc6 {[%emt 0:00:07]} 3. d4 {[%emt 0:00:00]} cxd4 {[%emt 0:00:04]} 4. Nxd4 {[%emt 0:00:05]} g6 {[%emt 0:00:10]} 5. c4 {[%emt 0:00:52]} Nf6 {[%emt 0:00:07]} 6. Nc3 {[%emt 0:01:08]} d6 {[%emt 0:00:03]} 7. f3 {[%emt 0:00:58]} Nxd4 {[%emt 0:00:05]} 8. Qxd4 {[%emt 0:00:05]} Bg7 {[%emt 0:00:13]} 9. Be3 {[%emt 0:00:12]} O-O {[%emt 0:00:04]} 10. Qd2 {[%emt 0:00:19]} a5 {[%emt 0:00:57]} 11. b3 {[%emt 0:00:58]} a4 {[%emt 0:00:41]} 12. b4 {[%emt 0:02:08]} Be6 {[%emt 0:00:04]} 13. Rc1 {[%emt 0:01:39]} Nd7 {[%emt 0:00:06]} 14. Be2 {[%emt 0:02:35]} a3 {[%emt 0:00:33]} 15. O-O {[%emt 0:04:51]} Nb6 {[%emt 0:00:41]} 16. Nd5 {[%emt 0:18:52]} Na4 {[%emt 0:02:11]} 17. Bd4 {[%emt 0:03:43]} Bxd4+ {[%emt 0:14:08]} 18. Qxd4 {[%emt 0:00:03]} Qd7 {[%emt 0:10:34]} 19. Qe3 {[%emt 0:04:01]} Bxd5 {[%emt 0:02:32]} 20. exd5 {[%emt 0:03:03]} b5 {[%emt 0:08:17]} 21. cxb5 {[%emt 0:01:38]} Rfc8 {[%emt 0:00:36]} 22. Rc6 {[%emt 0:01:16]} e6 {[%emt 0:08:14]} 23. dxe6 {[%emt 0:00:57]} fxe6 {[%emt 0:03:47]} 24. Rfc1 {[%emt 0:01:52]} d5 {[%emt 0:09:42]} 25. Qxa3 {[%emt 0:08:00]} Rxc6 {[%emt 0:05:17]} 26. Rxc6 {[%emt 0:00:27]} Kf7 {[%emt 0:08:44]} 27. Qc1 {[%emt 0:01:25]} Qd8 1-0

[Event "32nd GER-ch Seniors-65 2020"]
[Site "Magdeburg"]
[Date "2020.08.21"]
[Round "8.8"]
[White "Boidman, Yuri"]
[Black "Vasiljev, Jurij"]
[Result "1-0"]
[ECO "B53"]
[WhiteElo "2328"]
[BlackElo "1968"]
[Annotator "ChessBase"]
[PlyCount "67"]
[EventDate "2020.08.14"]
[EventType "swiss"]
[EventCountry "GER"]
[SourceTitle "playchess.com"]
[Source "ChessBase"]
[SourceQuality "1"]
[TimeControl "40/5400+30:1800+30"]

1. e4 {[%emt 0:00:02]} c5 {[%emt 0:00:00]} 2. Nf3 {[%emt 0:00:11]} d6 {[%emt 0:00:04]} 3. d4 {[%emt 0:00:10]} cxd4 {[%emt 0:00:09]} 4. Qxd4 {[%emt 0:00:06]} Nc6 {[%emt 0:01:10]} 5. Bb5 {[%emt 0:00:11]} Bd7 {[%emt 0:00:14]} 6. Bxc6 {[%emt 0:00:08]} Bxc6 {[%emt 0:00:21]} 7. Nc3 {[%emt 0:00:07]} Nf6 {[%emt 0:01:32]} 8. Bg5 {[%emt 0:00:08]} e5 {[%emt 0:01:24]} 9. Qd3 {[%emt 0:00:18]} h6 {[%emt 0:03:03]} 10. Bxf6 {[%emt 0:00:23]} Qxf6 {[%emt 0:00:13]} 11. Nd5 {[%emt 0:01:43]} Qd8 {[%emt 0:01:06]} 12. O-O-O {[%emt 0:00:35]} Rc8 {[%emt 0:00:45]} 13. Kb1 {[%emt 0:00:20]} Bxd5 {[%emt 0:00:55]} 14. Qxd5 {[%emt 0:00:29]} Qc7 {[%emt 0:00:12]} 15. Qb5+ {[%emt 0:03:51]} Qc6 {[%emt 0:00:18]} 16. Qxc6+ {[%emt 0:01:53]} Rxc6 {[%emt 0:00:31]} 17. b3 {[%emt 0:01:50]} Be7 {[%emt 0:00:31]} 18. Nd2 {[%emt 0:00:34]} O-O {[%emt 0:01:35]} 19. Nf1 {[%emt 0:03:20]} Rfc8 {[%emt 0:03:21]} 20. c4 {[%emt 0:00:27]} a6 {[%emt 0:00:23]} 21. Ne3 {[%emt 0:00:43]} b5 {[%emt 0:02:40]} 22. cxb5 {[%emt 0:00:33]} axb5 {[%emt 0:07:48]} 23. Rc1 {[%emt 0:00:28]} Kf8 {[%emt 0:07:22]} 24. Rxc6 {[%emt 0:00:33]} Rxc6 {[%emt 0:00:12]} 25. Rc1 {[%emt 0:00:13]} Rxc1+ {[%emt 0:03:43]} 26. Kxc1 {[%emt 0:00:08]} Bg5 {[%emt 0:03:08]} 27. Kc2 {[%emt 0:00:12]} Bxe3 {[%emt 0:03:16]} 28. fxe3 {[%emt 0:00:10]} Ke7 {[%emt 0:00:08]} 29. Kc3 {[%emt 0:00:34]} Kd7 {[%emt 0:00:17]} 30. Kb4 {[%emt 0:00:18]} Kc6 {[%emt 0:00:07]} 31. a4 {[%emt 0:01:23]} bxa4 {[%emt 0:00:14]} 32. bxa4 {[%emt 0:00:05]} f5 {[%emt 0:00:09]} 33. exf5 {[%emt 0:00:29]} d5 {[%emt 0:00:05]} 34. g4 {[%emt 0:00:44]} 1-0

[Event "32nd GER-ch Seniors-65 2020"]
[Site "Magdeburg"]
[Date "2020.08.21"]
[Round "8.9"]
[White "Brettschneider, Karl"]
[Black "Knaak, Joachim"]
[Result "0-1"]
[ECO "A22"]
[WhiteElo "2025"]
[BlackElo "2144"]
[Annotator "ChessBase"]
[PlyCount "44"]
[EventDate "2020.08.14"]
[EventType "swiss"]
[EventCountry "GER"]
[SourceTitle "playchess.com"]
[Source "ChessBase"]
[SourceQuality "1"]
[TimeControl "40/5400+30:1800+30"]

1. c4 {[%emt 0:00:00]} e5 {[%emt 0:00:00]} 2. Nc3 {[%emt 0:00:00]} Nf6 {[%emt 0:00:00]} 3. g3 {[%emt 0:00:22]} d5 {[%emt 0:00:12]} 4. cxd5 {[%emt 0:00:13]} Nxd5 {[%emt 0:00:03]} 5. Bg2 {[%emt 0:00:22]} Nb6 {[%emt 0:00:15]} 6. d3 {[%emt 0:02:42]} Be7 {[%emt 0:00:51]} 7. Nf3 {[%emt 0:00:56]} Nc6 {[%emt 0:00:15]} 8. O-O {[%emt 0:00:32]} O-O {[%emt 0:00:16]} 9. Nd2 {[%emt 0:04:37]} Be6 {[%emt 0:03:24]} 10. b3 {[%emt 0:04:12]} Qd7 {[%emt 0:01:58]} 11. Nc4 {[%emt 0:04:37]} Rad8 {[%emt 0:05:29]} 12. Bb2 {[%emt 0:04:49]} Bh3 {[%emt 0:02:37]} 13. Nxb6 {[%emt 0:12:52]} axb6 {[%emt 0:01:29]} 14. Nd5 {[%emt 0:03:16]} Bc5 {[%emt 0:13:49]} 15. Bxh3 {[%emt 0:18:45]} Qxh3 {[%emt 0:05:05]} 16. Nxc7 {[%emt 0:01:09]} Rd6 {[%emt 0:16:58]} 17. Bc1 {[%emt 0:00:15]} Nd4 {[%emt 0:02:23]} 18. a4 {[%emt 0:03:48]} Rfd8 {[%emt 0:07:24]} 19. Be3 {[%emt 0:07:51]} Nf5 {[%emt 0:05:02]} 20. Qd2 {[%emt 0:03:56]} Rg6 {[%emt 0:03:32]} 21. Bxc5 {[%emt 0:04:31]} Rh6 {[%emt 0:01:14]} 22. Qxh6 {[%emt 0:00:22]} Nxh6 {[%emt 0:00:54]} 0-1

[Event "32nd GER-ch Seniors-65 2020"]
[Site "Magdeburg"]
[Date "2020.08.22"]
[Round "9.6"]
[White "Waltenberger, Udo"]
[Black "Postler, Reinhard"]
[Result "0-1"]
[ECO "B40"]
[WhiteElo "2005"]
[BlackElo "2238"]
[Annotator "RC"]
[PlyCount "52"]
[EventDate "2020.08.14"]
[EventType "swiss"]
[EventCountry "GER"]
[SourceTitle "playchess.com"]
[Source "ChessBase"]
[SourceQuality "1"]
[TimeControl "40/5400+30:1800+30"]

1. e4 {[%emt 0:00:00]} c5 {[%emt 0:00:00]} 2. Nf3 {[%emt 0:00:00]} e6 {[%emt 0:00:00]} 3. c3 {[%emt 0:00:00]} Nf6 {[%emt 0:00:00]} 4. e5 {[%emt 0:00:02]} Nd5 {[%emt 0:00:01]} 5. d4 {[%emt 0:00:12]} cxd4 {[%emt 0:00:11]} 6. Qxd4 {[%emt 0:00:09]} Nc6 {[%emt 0:00:35]} 7. Qe4 {[%emt 0:00:05]} d6 {[%emt 0:00:51]} 8. Nbd2 {[%emt 0:01:31]} dxe5 {[%emt 0:09:38]} 9. Nxe5 {[%emt 0:00:05]} Qc7 {[%emt 0:13:08]} 10. Ndf3 {[%emt 0:08:22]} Bd6 {[%emt 0:04:41]} 11. Nc4 {[%emt 0:14:36]} Be7 {[%emt 0:01:23]} 12. Bd3 {[%emt 0:05:09]} b6 {[%emt 0:06:05]} 13. Nce5 {[%emt 0:04:09]} Bb7 {[%emt 0:02:07]} 14. Bb5 {[%emt 0:03:07]} Bd6 {[%emt 0:11:09]} 15. Nxc6 {[%emt 0:04:58]} Bxc6 {[%emt 0:00:03]} 16. Nd4 {[%emt 0:00:58]} Bd7 {[%emt 0:01:33]} 17. Nxe6 {[%emt 0:06:49]} fxe6 {[%emt 0:00:08]} 18. Qxe6+ {[%emt 0:00:09]} Ne7 {[%emt 0:00:04]} 19. Qe4 {[%emt 0:08:00]} Bc6 {[%emt 0:00:54]} 20. Bxc6+ {[%emt 0:01:43]} Qxc6 {[%emt 0:00:17]} 21. Qg4 {[%emt 0:00:19]} O-O {[%emt 0:02:20]} 22. Bg5 {[%emt 0:07:16]} Nf5 {[%emt 0:05:37]} 23. O-O-O {[%emt 0:00:20]} Rac8 {[%emt 0:03:05]} 24. Rhe1 {[%emt 0:04:02]} b5 {[%emt 0:03:19]} 25. Rd3 {[%emt 0:03:46]} g6 {[%emt 0:13:01]} 26. Re6 {[%emt 0:07:42]} Bf4+ {[%emt 0:00:25]} 0-1

[Event "32nd GER-ch Seniors-65 2020"]
[Site "Magdeburg"]
[Date "2020.08.22"]
[Round "9.8"]
[White "Knaak, Joachim"]
[Black "Zimmermann, Rolf"]
[Result "1/2-1/2"]
[ECO "A51"]
[WhiteElo "2144"]
[BlackElo "2101"]
[Annotator "ChessBase"]
[PlyCount "24"]
[EventDate "2020.08.14"]
[EventType "swiss"]
[EventCountry "GER"]
[SourceTitle "playchess.com"]
[Source "ChessBase"]
[SourceQuality "1"]
[TimeControl "40/5400+30:1800+30"]

1. d4 Nf6 {[%emt 0:01:16]} 2. c4 {[%emt 0:00:00]} e5 {[%emt 0:00:30]} 3. dxe5 {[%emt 0:00:08]} Ne4 {[%emt 0:00:52]} 4. a3 {[%emt 0:01:56]} a5 {[%emt 0:00:21]} 5. Nf3 {[%emt 0:02:01]} a4 {[%emt 0:06:30]} 6. Nbd2 {[%emt 0:12:28]} Nc5 {[%emt 0:01:20]} 7. e3 {[%emt 0:03:18]} Nc6 {[%emt 0:03:03]} 8. Be2 {[%emt 0:06:27]} g6 {[%emt 0:04:33]} 9. b4 {[%emt 0:04:20]} axb3 {[%emt 0:02:52]} 10. Nxb3 {[%emt 0:00:18]} Nxb3 {[%emt 0:00:26]} 11. Qxb3 Bg7 12. Bb2 O-O 1/2-1/2